fUSD/lending_fUSD_20240718
["ID","MTS","AMOUNT","RATE_DAILY","PERIOD"]
[332608931,1721343046540,-150.0,0.00023699,2]
[332608933,1721343046549,-529.43,0.00023699,2]
[332608935,1721343046559,-150.0,0.00023699,2]
[332608937,1721343046568,-150.0,0.00023699,2]
[332608939,1721343046578,-165.16,0.00023699,2]
[332608941,1721343046587,-150.0,0.00023699,2]
[332608943,1721343046597,-165.16,0.00023699,2]
[332608945,1721343046607,-150.0,0.00023699,2]
[332608947,1721343046617,-529.43,0.00023699,2]
[332608949,1721343046626,-150.0,0.00023699,2]
[332608951,1721343046636,-529.43,0.00023699,2]
[332608953,1721343046646,-150.0,0.00023699,2]
[332608955,1721343046655,-150.0,0.00023699,2]
[332608957,1721343046665,-150.0,0.00023699,2]
[332608959,1721343046675,-546.64,0.00023699,2]
[332608961,1721343046685,-165.16,0.00023699,2]
[332608963,1721343046702,-425.12,0.00023699,2]
[332608965,1721343046712,-528.58,0.00023699,2]
[332608967,1721343046721,-150.0,0.00023699,2]
[332608969,1721343046731,-165.16,0.00023699,2]
[332608971,1721343046740,-150.0,0.00023699,2]
[332608973,1721343046750,-150.0,0.00023699,2]
[332608975,1721343046759,-150.0,0.00023699,2]
[332608977,1721343046769,-425.12,0.00023699,2]
[332608979,1721343046779,-150.0,0.00023699,2]
[332608981,1721343046788,-165.16,0.00023699,2]
[332608983,1721343046798,-150.0,0.00023699,2]
[332608985,1721343046807,-150.0,0.00023699,2]
[332608987,1721343046818,-425.12,0.00023699,2]
[332608988,1721343046828,-150.0,0.00023699,2]
[332608990,1721343046837,-165.16,0.00023699,2]
[332608992,1721343046847,-163.91,0.00023699,2]
[332608994,1721343046856,-425.12,0.00023699,2]
[332608996,1721343046865,-150.0,0.00023699,2]
[332608998,1721343046875,-150.0,0.00023699,2]
[332609000,1721343046884,-150.0,0.00023699,2]
[332609002,1721343046893,-150.0,0.00023699,2]
[332609004,1721343046902,-1319.88888,0.0002386,2]
[332609006,1721343046911,-159.07982895,0.0002408,2]
[332609008,1721343046921,-155.29917121,0.00024094,2]
[332609010,1721343046930,-151.84947485,0.00024276,2]
[332609012,1721343046941,-156.9,0.00024313,2]
[332609014,1721343046950,-832.89,0.00024356,2]
[332609015,1721343046960,-150.0,0.00024521,2]
[332609017,1721343046969,-150.0,0.00024521,2]
[332609019,1721343046979,-150.0,0.00024521,2]
[332609021,1721343046988,-150.0,0.00024521,2]
[332609023,1721343046998,-31788.12384234,0.00024614,2]
[332609025,1721343047007,-4800.2861866,0.00024615,2]
[332609027,1721343047016,-386.13,0.00024629,2]
[332609029,1721343047026,-150.0,0.00024658,2]
[332609031,1721343047035,-282.81421011,0.00024686,2]
[332609033,1721343047045,-500.0,0.00025,2]
[332609034,1721343047054,-641495.04526259,0.00025,2]
[332609037,1721343047068,-10750.945965,0.00025,2]
[332609049,1721343047248,-150.0,0.00021151,2]
[332609050,1721343047258,-150.0,0.00023699,2]
[332609051,1721343047267,-435.915,0.00025,2]
[332609052,1721343047279,-3924.53627189,0.00025,2]
[332609053,1721343047341,-6329.77169579,0.00025,2]
[332609054,1721343047353,-1310.89655929,0.00025,2]
[332609055,1721343047364,-680.3546727,0.00025,2]
[332609057,1721343047375,-764.825,0.00025,2]
[332609231,1721343049102,-164.08458093,0.00014006,2]
[332609233,1721343049113,-138920.70886432,0.00025,2]
[332610221,1721344231880,-2374.07923418,0.00011324,2]
[332610222,1721344231889,-50000.0,0.00011795,2]
[332610223,1721344231899,-1072.7301067,0.00011795,2]
[332610224,1721344231910,-179.69755675,0.00011796,2]
[332610225,1721344231919,-1264.14059556,0.00011958,2]
[332610226,1721344231929,-12753.44578136,0.00011959,2]
[332610227,1721344231939,-179.69755675,0.00012479,2]
[332610228,1721344231950,-351.15,0.00012579,2]
[332610229,1721344231960,-525.98,0.00013,2]
[332610230,1721344231970,-525.98,0.00013,2]
[332610231,1721344231980,-525.98,0.00013,2]
[332610232,1721344231990,-525.98,0.00013,2]
[332610233,1721344232001,-525.98,0.00013,2]
[332610234,1721344232011,-525.98,0.00013,2]
[332610235,1721344232020,-525.98,0.00013,2]
[332610236,1721344232031,-525.98,0.00013,2]
[332610238,1721344232041,-525.98,0.00013,2]
[332610240,1721344232052,-525.98,0.00013,2]
[332610242,1721344232064,-482.78549742,0.00013133,2]
[332610244,1721344232074,-431.70678588,0.00013133,2]
[332610246,1721344232084,-525.98,0.00013287,2]
[332610248,1721344232095,-525.98,0.00013287,2]
[332610250,1721344232105,-525.98,0.00013287,2]
[332610251,1721344232115,-907.04,0.00013297,2]
[332610252,1721344232126,-6349.58,0.00013297,2]
[332610253,1721344232135,-493.74868315,0.00013331,2]
[332610254,1721344232145,-375.67762032,0.00013332,2]
[332610255,1721344232154,-270.07581794,0.00013332,2]
[332610256,1721344232164,-275.66868744,0.00013332,2]
[332610257,1721344232173,-300.0,0.00013332,2]
[332610258,1721344232183,-156.04927212,0.00013333,2]
[332610259,1721344232192,-155.0,0.00013333,2]
[332610260,1721344232202,-521.29302727,0.00013334,2]
[332610261,1721344232211,-329.35655342,0.00013334,2]
[332610262,1721344232220,-155.0,0.00013335,2]
[332610263,1721344232229,-644.62,0.00013342,2]
[332610264,1721344232239,-299.99,0.00013342,2]
[332610265,1721344232248,-1292.91,0.00013344,2]
[332610266,1721344232258,-242.80161712,0.00013579,2]
[332610267,1721344232267,-420.35,0.0001388,2]
[332610268,1721344232277,-150.0,0.00013889,2]
[332610269,1721344232286,-2254.95,0.0001389,2]
[332610270,1721344232296,-2254.95,0.0001389,2]
[332610271,1721344232305,-434.83292151,0.0001389,2]
[332610272,1721344232318,-351.96,0.0001389,2]
[332610273,1721344232353,-91.77897849,0.0001389,2]
[332610274,1721344232362,-304.73979005,0.000139,2]
[332610275,1721344232395,-525.98,0.00013332,2]
[332610276,1721344232408,-695.88800995,0.000139,2]
[332610277,1721344232417,-4983.6037,0.000139,2]
[332610278,1721344232427,-244.9211,0.000139,2]
[332610279,1721344232436,-323.9262,0.000139,2]
[332610280,1721344232446,-4070.7604,0.000139,2]
[332610281,1721344232456,-1000.0,0.000139,2]
[332610282,1721344232465,-213.18,0.00014351,2]
[332610283,1721344232477,-173.53,0.0001437,2]
[332610284,1721344232487,-695.76,0.00014395,2]
[332610285,1721344232497,-2254.95,0.00014421,2]
[332610286,1721344232507,-2254.95,0.00014421,2]
[332610287,1721344232516,-2254.95,0.00014421,2]
[332610288,1721344232525,-2254.95,0.00014421,2]
[332610289,1721344232534,-2254.95,0.00014421,2]
[332610290,1721344232544,-6711.282,0.00014431,2]
[332610291,1721344232553,-218.63,0.00014467,2]
[332610292,1721344232563,-23890.0,0.00014497,2]
[332610293,1721344232573,-250.0,0.00014685,2]
[332610294,1721344232583,-351.15,0.00014843,2]
[332610295,1721344232592,-150.0,0.00015,2]
[332610296,1721344232601,-255.0,0.00015014,2]
[332610297,1721344232610,-2254.95,0.00015446,2]
[332610298,1721344232620,-2218.31,0.00015456,2]
[332610299,1721344232629,-420.35,0.00015478,2]
[332610300,1721344232638,-2254.95,0.00015489,2]
[332610301,1721344232648,-2254.95,0.00015489,2]
[332610302,1721344232657,-2254.95,0.00015489,2]
[332610303,1721344232666,-2254.95,0.00015489,2]
[332610304,1721344232675,-2254.95,0.00015489,2]
[332610305,1721344232685,-2254.95,0.00015489,2]
[332610306,1721344232694,-2254.95,0.00015489,2]
[332610307,1721344232704,-10030.09,0.00015499,2]
[332610308,1721344232984,-2254.95,0.0001585,2]
[332610309,1721344232994,-2254.95,0.0001599,2]
[332610310,1721344233003,-2254.95,0.0001599,2]
[332610311,1721344233013,-2254.95,0.0001599,2]
[332610312,1721344233022,-5000.0,0.00016,2]
[332610313,1721344233031,-430.63,0.00016039,2]
[332610314,1721344233040,-250.0,0.00016053,2]
[332610315,1721344233050,-2254.95,0.00016122,2]
[332610316,1721344233059,-200.0,0.00016141,2]
[332610317,1721344233069,-695.76,0.00016194,2]
[332610318,1721344233079,-218.63,0.00016275,2]
[332610319,1721344233088,-420.35,0.0001632,2]
[332610320,1721344233098,-2254.95,0.00016331,2]
[332610321,1721344233107,-2254.95,0.00016331,2]
[332610322,1721344233116,-2254.95,0.00016331,2]
[332610323,1721344233126,-4388.55,0.00016341,2]
[332610324,1721344233135,-507.22,0.00016438,2]
[332610325,1721344233145,-454.64,0.00016986,2]
[332610326,1721344233154,-2254.95,0.0001699,2]
[332610327,1721344233163,-200.0,0.00017,2]
[332610328,1721344233172,-351.15,0.00017107,2]
[332610329,1721344233182,-500.0,0.00017525,2]
[332610330,1721344233191,-4540.8923,0.00017621,2]
[332610331,1721344233200,-2254.95,0.00017691,2]
[332610332,1721344233209,-2254.95,0.00017701,2]
[332610333,1721344233219,-2254.95,0.00017701,2]
[332610334,1721344233229,-2254.95,0.00017701,2]
[332610335,1721344233238,-2254.95,0.00017711,2]
[332610336,1721344233248,-2254.95,0.00017711,2]
[332610337,1721344233258,-2254.95,0.00017711,2]
[332610338,1721344233267,-2254.95,0.00017721,2]
[332610339,1721344233277,-2254.95,0.00017721,2]
[332610340,1721344233286,-2254.95,0.00017721,2]
[332610341,1721344233295,-2254.95,0.00017721,2]
[332610342,1721344233305,-2254.95,0.00017721,2]
[332610343,1721344233314,-2254.95,0.00017721,2]
[332610344,1721344233324,-2254.95,0.00017721,2]
[332610345,1721344233333,-2254.95,0.00017721,2]
[332610346,1721344233342,-2254.95,0.00017721,2]
[332610347,1721344233353,-2254.95,0.00017721,2]
[332610348,1721344233363,-2254.95,0.00017721,2]
[332610349,1721344233372,-2254.95,0.00017721,2]
[332610350,1721344233383,-2254.95,0.00017721,2]
[332610351,1721344233392,-2254.95,0.00017721,2]
[332610352,1721344233405,-2254.95,0.00017721,2]
[332610353,1721344233415,-2254.95,0.00017721,2]
[332610354,1721344233426,-2254.95,0.00017749,2]
[332610355,1721344233436,-371.37,0.00017759,2]
[332610356,1721344233447,-2254.95,0.0001784,2]
[332610357,1721344233460,-2254.95,0.0001784,2]
[332610358,1721344233471,-2254.95,0.0001784,2]
[332610359,1721344233484,-2254.95,0.00017887,2]
[332610360,1721344233495,-2254.95,0.00017887,2]
[332610361,1721344233506,-2254.95,0.00017887,2]
[332610362,1721344233516,-2254.95,0.00017887,2]
[332610363,1721344233526,-2254.95,0.00017887,2]
[332610364,1721344233536,-2254.95,0.00017887,2]
[332610365,1721344233556,-2254.95,0.00017887,2]
[332610366,1721344233567,-2254.95,0.00017887,2]
[332610367,1721344233580,-2254.95,0.00017887,2]
[332610368,1721344233590,-2254.95,0.00017887,2]
[332610369,1721344233600,-2254.95,0.00017887,2]
[332610370,1721344233611,-2254.95,0.00017887,2]
[332610371,1721344233621,-2254.95,0.00017887,2]
[332610372,1721344233631,-2254.95,0.00017887,2]
[332610373,1721344233641,-2254.95,0.00017887,2]
[332610374,1721344233652,-2254.95,0.00017887,2]
[332610375,1721344233662,-2254.95,0.00017887,2]
[332610376,1721344233672,-2254.95,0.00017887,2]
[332610377,1721344233682,-2254.95,0.00017887,2]
[332610378,1721344233693,-28625.96368518,0.00017897,2]
[332610379,1721344233703,-171.19,0.00017907,2]
[332610380,1721344233713,-2254.95,0.00017929,2]
[332610381,1721344233723,-2254.95,0.00017929,2]
[332610382,1721344233732,-2254.95,0.0001794,2]
[332610383,1721344233743,-695.76,0.00017993,2]
[332610384,1721344233753,-2254.95,0.00018014,2]
[332610385,1721344233763,-587.88,0.00018024,2]
[332610386,1721344233773,-218.63,0.00018084,2]
[332610387,1721344233783,-154.92997943,0.00018134,2]
[332610388,1721344233794,-153.33226061,0.00018356,2]
[332610389,1721344233804,-2254.95,0.0001839,2]
[332610390,1721344233814,-2254.95,0.0001839,2]
[332610391,1721344233824,-2254.95,0.0001839,2]
[332610392,1721344233835,-2254.95,0.0001839,2]
[332610393,1721344233845,-5307.0,0.000184,2]
[332610394,1721344233855,-2254.95,0.00018908,2]
[332610395,1721344233865,-250.0,0.00019,2]
[332610396,1721344233875,-351.15,0.0001937,2]
[332610397,1721344233885,-2254.95,0.0001958,2]
[332610398,1721344233895,-2254.95,0.0001959,2]
[332610399,1721344233904,-2254.95,0.0001959,2]
[332610400,1721344233914,-2254.95,0.0001959,2]
[332610401,1721344233924,-2254.95,0.00019632,2]
[332610402,1721344233934,-2254.95,0.00019632,2]
[332610403,1721344233944,-2254.95,0.00019632,2]
[332610404,1721344233955,-2254.95,0.00019632,2]
[332610405,1721344233966,-2254.95,0.00019632,2]
[332610406,1721344233976,-2254.95,0.00019632,2]
[332610407,1721344233987,-2254.95,0.00019632,2]
[332610408,1721344233997,-2254.95,0.00019632,2]
[332610409,1721344234007,-2254.95,0.00019632,2]
[332610410,1721344234018,-2254.95,0.00019632,2]
[332610411,1721344234029,-2254.95,0.00019632,2]
[332610412,1721344234039,-2254.95,0.00019632,2]
[332610413,1721344234049,-2254.95,0.00019632,2]
[332610414,1721344234059,-2254.95,0.00019632,2]
[332610415,1721344234068,-2254.95,0.00019632,2]
[332610416,1721344234078,-2254.95,0.00019632,2]
[332610417,1721344234088,-2254.95,0.00019632,2]
[332610418,1721344234099,-28625.96368509,0.00019642,2]
[332610419,1721344234108,-695.76,0.00019793,2]
[332610420,1721344234118,-155.29917121,0.00019881,2]
[332610421,1721344234128,-218.63,0.00019892,2]
[332610422,1721344234138,-356.0,0.000199,2]
[332610423,1721344234148,-225.0,0.000199,2]
[332610424,1721344234158,-952.2,0.000199,2]
[332610425,1721344234167,-371.37,0.00019979,2]
[332610426,1721344234178,-208.28,0.0002,2]
[332610427,1721344234188,-156.9,0.00020057,2]
[332610428,1721344234198,-2500.0,0.00020097,2]
[332610429,1721344234208,-587.88,0.00020277,2]
[332610430,1721344234218,-151.25604289,0.00020906,2]
[332610431,1721344234228,-300.0,0.00021,2]
[332610432,1721344234238,-155.82428155,0.00021291,2]
[332610433,1721344234248,-159.07,0.0002134,2]
[332610434,1721344234258,-227.41308538,0.00021385,2]
[332610435,1721344234268,-28625.96368509,0.00021386,2]
[332610436,1721344234278,-156.9,0.00021416,2]
[332610437,1721344234288,-276.90259166,0.00021555,2]
[332610438,1721344234298,-155.0,0.00021555,2]
[332610439,1721344234309,-173.53,0.00021556,2]
[332610440,1721344234318,-695.76,0.00021592,2]
[332610441,1721344234329,-351.15,0.00021634,2]
[332610442,1721344234339,-1136.59537977,0.00021642,2]
[332610443,1721344234348,-1279.44755398,0.00021642,2]
[332610444,1721344234358,-154.95,0.00021644,2]
[332610445,1721344234368,-173.81,0.00021644,2]
[332610446,1721344234378,-218.63,0.00021701,2]
[332610447,1721344234388,-167.17,0.00021918,2]
[332610448,1721344234401,-150.0,0.00021918,2]
[332610449,1721344234416,-198.34,0.00021918,2]
[332610450,1721344234427,-166.5,0.00021918,2]
[332610451,1721344234437,-362.07437022,0.00022148,2]
[332610452,1721344234451,-371.37,0.00022198,2]
[332610453,1721344234461,-1279.44755398,0.00022454,2]
[332610454,1721344234471,-430.63,0.00022455,2]
[332610455,1721344234482,-371.29329548,0.00022529,2]
[332610456,1721344234492,-587.88,0.0002253,2]
[332610457,1721344234503,-156.9,0.00022774,2]
[332610458,1721344234514,-153.88854848,0.00022797,2]
[332610459,1721344234524,-153.33226061,0.00022907,2]
[332610460,1721344234534,-350.0,0.00023,2]
[332610461,1721344234545,-280.00536264,0.00023,2]
[332610462,1721344234555,-28625.96368509,0.00023131,2]
[332610463,1721344234565,-150.0,0.00023288,2]
[332610464,1721344234577,-1077.9821,0.00023362,2]
[332610465,1721344234587,-155.29917121,0.00023389,2]
[332610466,1721344234597,-152.42858912,0.00023442,2]
[332610467,1721344234607,-4880.25024866,0.00023452,2]
[332610471,1721344237781,-242.80161712,0.0001351,2]
[332610472,1721344237790,-525.98,0.0001388,2]
[332610473,1721344237800,-525.98,0.0001388,2]
[332610474,1721344237810,-525.98,0.0001389,2]
[332610475,1721344237819,-525.98,0.0001389,2]
[332610476,1721344237829,-525.98,0.0001389,2]
[332610477,1721344237838,-160.5035597,0.0001389,2]
[332610478,1721344237850,-365.4764403,0.0001389,2]
[332610479,1721344237860,-525.98,0.00014411,2]
[332610480,1721344237869,-525.98,0.00014411,2]
[332610481,1721344237878,-525.98,0.00014411,2]
[332610482,1721344237888,-525.98,0.00014411,2]
[332610483,1721344237897,-525.98,0.00014421,2]
[332610484,1721344237907,-525.98,0.00014421,2]
[332610485,1721344237917,-525.98,0.00014486,2]
[332610486,1721344237927,-525.98,0.00014486,2]
[332610487,1721344237937,-525.98,0.00014486,2]
[332610488,1721344237946,-525.98,0.00014486,2]
[332610489,1721344237956,-525.98,0.00014486,2]
[332610490,1721344237966,-525.98,0.00014486,2]
[332610491,1721344237975,-525.98,0.00014486,2]
[332610493,1721344237985,-525.98,0.00014486,2]
[332610495,1721344237995,-525.98,0.00015436,2]
[332610497,1721344238004,-525.98,0.00015446,2]
[332610499,1721344238013,-525.98,0.00015478,2]
[332610500,1721344238023,-525.98,0.00015478,2]
[332610502,1721344238032,-417.20226166,0.00021641,2]
[332610504,1721344238042,-32096.76555404,0.00023452,2]
[332610507,1721344239716,-329.35655342,0.00013333,2]
[332610508,1721344239726,-525.98,0.00015478,2]
[332610509,1721344239736,-417.88295391,0.00015478,2]
[332610510,1721344239747,-108.09704609,0.00015478,2]
[332610511,1721344239757,-407.59295391,0.00015478,2]
[332610512,1721344239768,-118.38704609,0.00015478,2]
[332610513,1721344239778,-250.61295391,0.00015489,2]
[332610514,1721344239845,-275.36704609,0.00015489,2]
[332610515,1721344239854,-525.98,0.00015489,2]
[332610516,1721344239864,-525.98,0.00015489,2]
[332610517,1721344239873,-525.98,0.0001584,2]
[332610518,1721344239883,-5864.1464973,0.00023452,2]
[332610519,1721344239896,-153.89,0.00023507,2]
[332610520,1721344239906,-423.05,0.00023507,2]
[332610521,1721344239915,-20012.5249201,0.00023552,3]
[332610522,1721344239924,-1661.0,0.00023562,2]
[332610523,1721344239934,-1252.0,0.00023562,2]
[332610524,1721344239943,-1829.0,0.00023562,2]
[332610525,1721344239954,-361.0,0.00023562,2]
[332610526,1721344239964,-823.27,0.00023562,2]
[332610527,1721344239973,-620.0,0.00023562,2]
[332610528,1721344239985,-445.0,0.00023562,2]
[332610529,1721344239995,-450.0,0.00023562,2]
[332610530,1721344240004,-2378.0,0.00023562,2]
[332610531,1721344240014,-540.79,0.00023562,2]
[332610532,1721344240023,-359.432,0.00023562,2]
[332610533,1721344240032,-150.141,0.00023562,2]
[332610534,1721344240041,-3280.0,0.00023562,2]
[332610535,1721344240051,-5117.0,0.00023562,2]
[332610536,1721344240061,-5823.0,0.00023562,2]
[332610537,1721344240070,-1201.0,0.00023562,2]
[332610538,1721344240079,-1667.0,0.00023562,2]
[332610539,1721344240089,-38322.0,0.00023562,2]
[332610540,1721344240098,-533.607,0.00023562,2]
[332610541,1721344240107,-400.0,0.00023691,2]
[332610542,1721344240117,-351.15,0.00023898,2]
[332610543,1721344240126,-154.92997943,0.00023909,2]
[332610544,1721344240135,-1388.47743863,0.00024124,2]
[332610545,1721344240145,-156.9,0.00024133,2]
[332610546,1721344240154,-155.29917121,0.00024319,2]
[332610547,1721344240164,-876.54,0.00024356,2]
[332610548,1721344240174,-153.33226061,0.00024384,2]
[332610549,1721344240183,-371.37,0.00024418,2]
[332610550,1721344240193,-150.0,0.00024658,2]
[332610551,1721344240203,-155.03272074,0.00024675,2]
[332610552,1721344240213,-587.88,0.00024783,2]
[332610553,1721344240223,-155.82428155,0.00024795,2]
[332610554,1721344240232,-500.0,0.00024799,2]
[332610556,1721344240241,-226.74750375,0.000248,2]
[332610558,1721344240251,-4002.50498401,0.00024839,4]
[332610560,1721344240260,-16010.019936,0.00024865,4]
[332610562,1721344240270,-1063.01251185,0.00024873,2]
[332610564,1721344240279,-28625.96368509,0.00024875,2]
[332610566,1721344240289,-9869.39702875,0.0002489,4]
[332610578,1721344240390,-525.98,0.0001598,2]
[332610580,1721344240403,-38160.66277935,0.0002489,4]
[332610581,1721344240412,-11621.99146119,0.000249,2]
[332610586,1721344240448,-2429.04615873,0.000249,2]
[332610653,1721344243699,-525.98,0.0001598,2]
[332610656,1721344243711,-525.98,0.0001599,2]
[332610660,1721344243722,-525.98,0.0001599,2]
[332610662,1721344243731,-525.98,0.00016111,2]
[332610665,1721344243742,-85948.96238008,0.000249,2]
[332610667,1721344243752,-500.0,0.000249,2]
[332610669,1721344243762,-1048.3846,0.000249,2]
[332610670,1721344243771,-161.3672115,0.000249,2]
[332610673,1721344243782,-215.3631,0.000249,2]
[332610676,1721344243792,-162.30891768,0.000249,2]
[332610678,1721344243801,-5000.0,0.000249,2]
[332610680,1721344243811,-383.99247552,0.00024907,2]
[332610682,1721344243821,-348.705359,0.00024932,2]
[332610684,1721344243830,-4002.50498401,0.00024969,4]
[332610686,1721344243840,-1000.0,0.00024971,2]
[332610688,1721344243850,-164.07250622,0.00024979,2]
[332610689,1721344243860,-99281.00446599,0.0002499,4]
[332610690,1721344243911,-432.0,0.0002499,4]
[332610691,1721344243924,-8365.4332387,0.0002499,4]
[332610692,1721344243953,-310.0,0.0002499,4]
[332610693,1721344243967,-3681.70184731,0.0002499,4]
[332610694,1721344243977,-3303.29234364,0.00025,2]
[332610695,1721344243989,-1366.81639625,0.00025,2]
[332610696,1721344244002,-3491.09720002,0.00025,2]
[332610697,1721344244013,-707.3898016,0.00025,2]
[332610698,1721344244038,-385678.07521346,0.00025,2]
[332610699,1721344244049,-410.19142791,0.00025,2]
[332610700,1721344244059,-1000.0,0.00025,14]
[332610701,1721344244070,-258.0,0.00025,2]
[332610702,1721344244080,-500.0,0.00025,2]
[332610703,1721344244089,-500.0,0.00025,2]
[332610704,1721344244099,-500.0,0.00025,2]
[332610705,1721344244109,-500.0,0.00025,2]
[332610706,1721344244119,-500.0,0.00025,2]
[332610707,1721344244128,-500.0,0.00025,2]
[332610708,1721344244137,-500.0,0.00025,2]
[332610709,1721344244146,-500.0,0.00025,2]
[332610710,1721344244156,-500.0,0.00025,2]
[332610711,1721344244166,-500.0,0.00025,2]
[332610712,1721344244175,-500.0,0.00025,2]
[332610713,1721344244184,-500.0,0.00025,2]
[332610714,1721344244194,-500.0,0.00025,2]
[332610715,1721344244204,-500.0,0.00025,2]
[332610716,1721344244215,-500.0,0.00025,2]
[332610717,1721344244225,-500.0,0.00025,2]
[332610718,1721344244235,-500.0,0.00025,2]
[332610719,1721344244245,-500.0,0.00025,2]
[332610720,1721344244255,-500.0,0.00025,2]
[332610721,1721344244265,-500.0,0.00025,2]
[332610722,1721344244274,-500.0,0.00025,2]
[332610723,1721344244284,-500.0,0.00025,2]
[332610724,1721344244294,-500.0,0.00025,2]
[332610725,1721344244304,-500.0,0.00025,2]
[332610726,1721344244314,-500.0,0.00025,2]
[332610727,1721344244324,-500.0,0.00025,2]
[332610728,1721344244334,-500.0,0.00025,2]
[332610729,1721344244343,-500.0,0.00025,2]
[332610730,1721344244353,-500.0,0.00025,2]
[332610731,1721344244363,-500.0,0.00025,2]
[332610732,1721344244374,-500.0,0.00025,2]
[332610733,1721344244383,-500.0,0.00025,2]
[332610734,1721344244393,-500.0,0.00025,2]
[332610735,1721344244406,-500.0,0.00025,2]
[332610736,1721344244416,-500.0,0.00025,2]
[332610737,1721344244425,-500.0,0.00025,2]
[332610738,1721344244435,-500.0,0.00025,2]
[332610739,1721344244447,-500.0,0.00025,2]
[332610740,1721344244456,-500.0,0.00025,2]
[332610741,1721344244466,-500.0,0.00025,2]
[332610742,1721344244476,-500.0,0.00025,2]
[332610743,1721344244486,-500.0,0.00025,2]
[332610744,1721344244496,-2000.0,0.00025,2]
[332610745,1721344244511,-500.0,0.00025,2]
[332610746,1721344244521,-500.0,0.00025,2]
[332610747,1721344244531,-2000.0,0.00025,2]
[332610748,1721344244541,-2000.0,0.00025,2]
[332610749,1721344244550,-646.00772581,0.00025,2]
[332610750,1721344244560,-500.0,0.00025,2]
[332610751,1721344244571,-500.0,0.00025,2]
[332610752,1721344244582,-500.0,0.00025,2]
[332610753,1721344244594,-500.0,0.00025,2]
[332610754,1721344244605,-500.0,0.00025,2]
[332610755,1721344244616,-500.0,0.00025,2]
[332610756,1721344244627,-500.0,0.00025,2]
[332610757,1721344244637,-500.0,0.00025,2]
[332610758,1721344244647,-500.0,0.00025,2]
[332610759,1721344244657,-500.0,0.00025,2]
[332610760,1721344244668,-500.0,0.00025,2]
[332610761,1721344244678,-500.0,0.00025,2]
[332610762,1721344244689,-500.0,0.00025,2]
[332610763,1721344244699,-500.0,0.00025,2]
[332610764,1721344244710,-500.0,0.00025,2]
[332610765,1721344244722,-500.0,0.00025,2]
[332610766,1721344244733,-500.0,0.00025,2]
[332610767,1721344244743,-500.0,0.00025,2]
[332610768,1721344244752,-500.0,0.00025,2]
[332610769,1721344244762,-500.0,0.00025,2]
[332610770,1721344244772,-500.0,0.00025,2]
[332610771,1721344244782,-500.0,0.00025,2]
[332610772,1721344244792,-500.0,0.00025,2]
[332610773,1721344244802,-500.0,0.00025,2]
[332610774,1721344244811,-500.0,0.00025,2]
[332610775,1721344244821,-500.0,0.00025,2]
[332610776,1721344244831,-500.0,0.00025,2]
[332610777,1721344244844,-500.0,0.00025,2]
[332610778,1721344244854,-500.0,0.00025,2]
[332610779,1721344244863,-500.0,0.00025,2]
[332610780,1721344244873,-500.0,0.00025,2]
[332610781,1721344244883,-500.0,0.00025,2]